fUST/lending_fUST_20250121
["ID","MTS","AMOUNT","RATE_DAILY","PERIOD"]
[349802463,1737436244786,-502.32409212,0.00021917,3]
[349802465,1737436244796,-3665.17,0.00021917,3]
[349802467,1737436244806,-500.0,0.00021917,3]
[349802469,1737436244815,-500.0,0.00021917,3]
[349802471,1737436244825,-2353.99,0.00021917,3]
[349802473,1737436244835,-500.0,0.00021917,3]
[349802475,1737436244845,-501.23271537,0.00021917,3]
[349802477,1737436244855,-1144.59,0.00021917,3]
[349802479,1737436244865,-1144.59,0.00021917,3]
[349802481,1737436244875,-500.0,0.00021917,3]
[349802483,1737436244885,-1144.59,0.00021917,3]
[349802485,1737436244894,-1144.59,0.00021917,3]
[349802487,1737436244905,-1144.59,0.00021917,3]
[349802489,1737436244915,-500.0,0.00021917,3]
[349802491,1737436244925,-1144.59,0.00021917,3]
[349802494,1737436244935,-1144.59,0.00021917,3]
[349802496,1737436244946,-1144.59,0.00021917,3]
[349802498,1737436244956,-1144.59,0.00021917,3]
[349802500,1737436244966,-1144.59,0.00021917,3]
[349802502,1737436244975,-1144.59,0.00021917,3]
[349802504,1737436244985,-1144.59,0.00021917,3]
[349802506,1737436244995,-1144.59,0.00021917,3]
[349802508,1737436245006,-1144.59,0.00021917,3]
[349802510,1737436245015,-1144.59,0.00021917,3]
[349802512,1737436245025,-503.94318694,0.00021917,3]
[349802514,1737436245035,-1144.59,0.00021917,3]
[349802516,1737436245044,-1144.59,0.00021917,3]
[349802518,1737436245054,-1144.59,0.00021917,3]
[349802520,1737436245064,-1144.59,0.00021917,3]
[349802522,1737436245074,-501.09861505,0.00021917,3]
[349802524,1737436245084,-1144.59,0.00021917,3]
[349802526,1737436245094,-707.0,0.00021918,3]
[349802528,1737436245104,-225.6,0.00021967,5]
[349802530,1737436245114,-500.0,0.00021973,2]
[349802532,1737436245124,-500.0,0.00021973,2]
[349802534,1737436245133,-234.78374907,0.00021998,3]
[349802536,1737436245142,-150.161,0.00021999,2]
[349802538,1737436245152,-2017.0,0.00021999,2]
[349802540,1737436245161,-13162.72,0.00022,2]
[349802542,1737436245171,-151.0,0.00022,8]
[349802544,1737436245181,-277.219504,0.00022,5]
[349802546,1737436245191,-339.32967235,0.00022049,2]
[349802548,1737436245201,-500.0,0.00022054,3]
[349802550,1737436245209,-500.0,0.00022054,3]
[349802552,1737436245219,-500.0,0.00022054,3]
[349802554,1737436245228,-500.0,0.00022054,3]
[349802556,1737436245237,-555.78603425,0.00022054,3]
[349802558,1737436245247,-500.0,0.00022054,3]
[349802560,1737436245256,-500.0,0.00022054,3]
[349802562,1737436245265,-500.0,0.00022054,3]
[349802564,1737436245275,-1235.39,0.00022054,3]
[349802566,1737436245284,-500.0,0.00022054,3]
[349802568,1737436245294,-500.0,0.00022054,3]
[349802570,1737436245303,-500.0,0.00022054,3]
[349802572,1737436245312,-500.0,0.00022054,3]
[349802574,1737436245322,-500.0,0.00022054,3]
[349802576,1737436245331,-500.0,0.00022054,3]
[349802578,1737436245340,-796.12,0.00022054,3]
[349802580,1737436245350,-500.0,0.00022054,3]
[349802582,1737436245359,-500.0,0.00022054,3]
[349802584,1737436245369,-500.0,0.00022054,3]
[349802586,1737436245378,-500.0,0.00022054,3]
[349802588,1737436245387,-360.39523423,0.00022054,3]
[349802590,1737436245396,-500.0,0.00022054,3]
[349802592,1737436245406,-998.97,0.00022054,3]
[349802594,1737436245415,-500.0,0.00022054,3]
[349802596,1737436245424,-604.25,0.00022054,3]
[349802598,1737436245433,-504.92785462,0.00022054,3]
[349802600,1737436245443,-188.0,0.00022054,2]
[349802602,1737436245452,-500.0,0.00022054,3]
[349802604,1737436245464,-500.0,0.00022054,3]
[349802606,1737436245473,-500.0,0.00022054,3]
[349802608,1737436245482,-500.0,0.00022054,3]
[349802610,1737436245491,-500.0,0.00022054,3]
[349802612,1737436245500,-500.0,0.00022054,3]
[349802615,1737436245510,-500.0,0.00022054,3]
[349802617,1737436245519,-500.0,0.00022054,3]
[349802619,1737436245530,-500.0,0.00022054,3]
[349802621,1737436245539,-500.0,0.00022054,3]
[349802623,1737436245549,-500.0,0.00022054,3]
[349802626,1737436245558,-548.78,0.00022054,3]
[349802628,1737436245567,-500.0,0.00022054,3]
[349802630,1737436245578,-500.0,0.00022054,3]
[349802632,1737436245587,-300.0,0.00022054,3]
[349802634,1737436245597,-500.0,0.00022054,3]
[349802636,1737436245607,-500.0,0.00022054,3]
[349802638,1737436245616,-500.0,0.00022054,3]
[349802640,1737436245625,-500.0,0.00022054,3]
[349802642,1737436245635,-502.97198114,0.00022054,3]
[349802644,1737436245644,-500.0,0.00022054,3]
[349802646,1737436245654,-500.9520974,0.00022054,3]
[349802648,1737436245663,-500.0,0.00022054,3]
[349802651,1737436245673,-219.10377944,0.00022054,3]
[349802653,1737436245682,-500.0,0.00022054,3]
[349802656,1737436245692,-500.0,0.00022054,3]
[349802659,1737436245701,-500.0,0.00022054,3]
[349802662,1737436245710,-500.0,0.00022054,3]
[349802664,1737436245720,-500.0,0.00022054,3]
[349802666,1737436245729,-500.0,0.00022054,3]
[349802668,1737436245739,-500.0,0.00022054,3]
[349802670,1737436245749,-500.0,0.00022054,3]
[349802672,1737436245760,-500.0,0.00022054,3]
[349802674,1737436245769,-500.0,0.00022054,3]
[349802676,1737436245778,-1333.83,0.00022054,3]
[349802678,1737436245788,-517.35804752,0.00022054,3]
[349802680,1737436245799,-500.0,0.00022054,3]
[349802682,1737436245809,-500.0,0.00022054,3]
[349802684,1737436245818,-500.0,0.00022054,3]
[349802686,1737436245828,-500.0,0.00022054,3]
[349802688,1737436245837,-466.46367718,0.00022054,3]
[349802690,1737436245847,-500.0,0.00022054,3]
[349802692,1737436245856,-500.0,0.00022054,3]
[349802694,1737436245865,-1527.69,0.00022054,3]
[349802696,1737436245874,-500.0,0.00022054,3]
[349802698,1737436245883,-500.0,0.00022054,3]
[349802700,1737436245894,-500.0,0.00022054,3]
[349802702,1737436245903,-500.0,0.00022054,3]
[349802704,1737436245912,-500.0,0.00022054,3]
[349802706,1737436245922,-500.0,0.00022054,3]
[349802708,1737436245931,-953.42,0.00022054,3]
[349802710,1737436245940,-500.0,0.00022054,3]
[349802712,1737436245949,-500.0,0.00022054,3]
[349802714,1737436245959,-500.0,0.00022054,3]
[349802716,1737436245968,-500.0,0.00022054,3]
[349802718,1737436245978,-339.75689561,0.00022054,3]
[349802720,1737436245987,-184.81898242,0.00022054,3]
[349802722,1737436245996,-500.0,0.00022054,3]
[349802724,1737436246005,-500.0,0.00022054,3]
[349802726,1737436246014,-500.0,0.00022054,3]
[349802727,1737436246024,-500.0,0.00022054,3]
[349802728,1737436246033,-200.0,0.00022054,3]
[349802729,1737436246044,-500.0,0.00022054,3]
[349802730,1737436246054,-1913.55,0.00022054,3]
[349802732,1737436246064,-500.0,0.00022054,3]
[349802734,1737436246073,-822.24,0.00022054,3]
[349802736,1737436246082,-500.0,0.00022054,3]
[349802738,1737436246092,-510.31717324,0.00022054,3]
[349802740,1737436246102,-500.0,0.00022054,3]
[349802742,1737436246112,-500.0,0.00022054,3]
[349802744,1737436246121,-500.0,0.00022054,3]
[349802746,1737436246131,-824.53,0.00022054,3]
[349802748,1737436246140,-500.0,0.00022054,3]
[349802750,1737436246149,-1171.5,0.00022054,3]
[349802752,1737436246159,-757.81,0.00022054,3]
[349802754,1737436246168,-500.0,0.00022054,3]
[349802756,1737436246177,-500.0,0.00022054,3]
[349802758,1737436246187,-730.74,0.00022054,3]
[349802760,1737436246196,-1169.85,0.00022054,3]
[349802762,1737436246206,-717.4,0.00022054,3]
[349802764,1737436246215,-1423.53,0.00022054,3]
[349802766,1737436246224,-500.0,0.00022054,3]
[349802768,1737436246233,-624.85,0.00022054,3]
[349802770,1737436246243,-500.0,0.00022054,3]
[349802772,1737436246252,-500.0,0.00022054,3]
[349802774,1737436246261,-500.0,0.00022054,3]
[349802776,1737436246270,-500.0,0.00022054,3]
[349802778,1737436246280,-813.03,0.00022054,3]
[349802780,1737436246289,-500.0,0.00022054,3]
[349802782,1737436246301,-500.0,0.00022054,3]
[349802784,1737436246311,-500.0,0.00022054,3]
[349802786,1737436246320,-500.0,0.00022054,3]
[349802789,1737436246330,-500.0,0.00022054,3]
[349802791,1737436246339,-814.58,0.00022054,3]
[349802792,1737436246348,-500.0,0.00022054,3]
[349802794,1737436246357,-500.0,0.00022054,3]
[349802796,1737436246367,-827.27,0.00022054,3]
[349802798,1737436246377,-500.0,0.00022054,3]
[349802800,1737436246387,-500.0,0.00022054,3]
[349802803,1737436246396,-641.99715305,0.00022054,3]
[349802805,1737436246406,-747.15,0.00022054,3]
[349802807,1737436246415,-275.70264764,0.00022054,3]
[349802809,1737436246425,-500.0,0.00022054,3]
[349802811,1737436246434,-681.43,0.00022054,3]
[349802813,1737436246443,-500.0,0.00022054,3]
[349802815,1737436246452,-500.0,0.00022054,3]
[349802817,1737436246462,-500.0,0.00022054,3]
[349802818,1737436246471,-500.0,0.00022054,3]
[349802820,1737436246480,-500.0,0.00022054,3]
[349802823,1737436246490,-500.0,0.00022054,3]
[349802824,1737436246499,-500.0,0.00022054,3]
[349802827,1737436246509,-500.0,0.00022054,3]
[349802828,1737436246519,-500.0,0.00022054,3]
[349802831,1737436246528,-500.0,0.00022054,3]
[349802833,1737436246538,-998.18,0.00022054,3]
[349802835,1737436246549,-500.81,0.00022054,3]
[349802837,1737436246558,-500.0,0.00022054,3]
[349802839,1737436246567,-608.11064736,0.00022054,3]
[349802840,1737436246577,-500.0,0.00022054,3]
[349802843,1737436246587,-500.0,0.00022054,3]
[349802845,1737436246596,-1253.69,0.00022054,3]
[349802847,1737436246606,-500.0,0.00022054,3]
[349802849,1737436246615,-500.0,0.00022054,3]
[349802851,1737436246625,-539.27,0.00022054,3]
[349802853,1737436246634,-859.92,0.00022054,3]
[349802855,1737436246643,-500.0,0.00022054,3]
[349802857,1737436246653,-500.0,0.00022054,3]
[349802859,1737436246662,-1244.51,0.00022054,3]
[349802861,1737436246671,-500.0,0.00022054,3]
[349802863,1737436246681,-500.0,0.00022054,3]
[349802865,1737436246690,-500.0,0.00022054,3]
[349802867,1737436246699,-500.0,0.00022054,3]
[349802869,1737436246708,-500.0,0.00022054,3]
[349802871,1737436246718,-856.94,0.00022054,3]
[349802873,1737436246727,-500.0,0.00022054,3]
[349802875,1737436246736,-500.0,0.00022054,3]
[349802877,1737436246747,-500.0,0.00022054,3]
[349802879,1737436246758,-500.0,0.00022054,3]
[349802881,1737436246768,-500.0,0.00022054,3]
[349802883,1737436246777,-565.02,0.00022054,3]
[349802885,1737436246786,-850.13,0.00022054,3]
[349802887,1737436246797,-500.0,0.00022054,3]
[349802889,1737436246807,-500.0,0.00022054,3]
[349802911,1737436246999,-511.72,0.00022054,3]
[349802914,1737436247011,-500.0,0.00022054,3]
[349802916,1737436247022,-500.0,0.00022054,3]
[349802918,1737436247032,-500.0,0.00022054,3]
[349802920,1737436247042,-500.0,0.00022054,3]
[349802922,1737436247052,-500.0,0.00022054,3]
[349802924,1737436247062,-846.61,0.00022054,3]
[349802926,1737436247071,-500.0,0.00022054,3]
[349802928,1737436247080,-500.0,0.00022054,3]
[349802930,1737436247090,-510.96,0.00022054,3]
[349802932,1737436247099,-1671.98,0.00022054,2]
[349802934,1737436247109,-500.0,0.00022054,3]
[349802936,1737436247118,-514.59817467,0.00022054,3]
[349802938,1737436247128,-500.0,0.00022054,3]
[349802940,1737436247138,-500.0,0.00022054,3]
[349802942,1737436247147,-500.0,0.00022054,3]
[349802945,1737436247157,-1863.02,0.00022054,3]
[349802947,1737436247166,-7275.37,0.00022054,3]
[349802949,1737436247175,-500.0,0.00022054,3]
[349802951,1737436247185,-500.0,0.00022054,3]
[349802953,1737436247194,-500.0,0.00022054,3]
[349802955,1737436247204,-5517.57,0.00022054,3]
[349802957,1737436247213,-500.0,0.00022054,3]
[349802959,1737436247223,-500.0,0.00022054,3]
[349802961,1737436247233,-2016.17,0.00022054,3]
[349802963,1737436247242,-500.0,0.00022054,3]
[349802965,1737436247252,-718.57,0.00022054,3]
[349802967,1737436247262,-1581.02,0.00022054,3]
[349802969,1737436247271,-500.0,0.00022054,3]
[349802971,1737436247281,-500.02147665,0.00022054,3]
[349802973,1737436247291,-507.65144757,0.00022054,3]
[349802975,1737436247301,-849.72,0.00022054,3]
[349802977,1737436247311,-163.11,0.00022054,2]
[349802979,1737436247320,-500.0,0.00022054,3]
[349802981,1737436247330,-500.0,0.00022054,3]
[349802983,1737436247340,-1294.2,0.00022054,3]
[349802985,1737436247350,-500.0,0.00022054,3]
[349802987,1737436247359,-500.0,0.00022054,3]
[349802989,1737436247369,-567.86,0.00022054,3]
[349802992,1737436247379,-500.0,0.00022054,3]
[349802994,1737436247389,-795.86,0.00022054,3]
[349802996,1737436247398,-500.0,0.00022054,3]
[349802998,1737436247408,-500.0,0.00022054,3]
[349803000,1737436247417,-2490.81,0.00022054,3]
[349803002,1737436247427,-500.0,0.00022054,3]
[349803004,1737436247436,-602.21,0.00022054,3]
[349803006,1737436247445,-598.1,0.00022054,3]
[349803008,1737436247455,-500.0,0.00022054,3]
[349803010,1737436247465,-906.2,0.00022054,3]
[349803012,1737436247475,-500.0,0.00022054,3]
[349803014,1737436247484,-500.0,0.00022054,3]
[349803016,1737436247494,-500.0,0.00022054,3]
[349803018,1737436247504,-500.0,0.00022054,3]
[349803020,1737436247513,-502.76907623,0.00022054,3]
[349803022,1737436247523,-500.0,0.00022054,3]
[349803024,1737436247533,-500.0,0.00022054,3]
[349803026,1737436247543,-500.0,0.00022054,3]
[349803028,1737436247555,-500.0,0.00022054,3]
[349803030,1737436247565,-517.62,0.00022054,3]
[349803032,1737436247574,-500.0,0.00022054,3]
[349803034,1737436247584,-500.0,0.00022054,3]
[349803036,1737436247595,-500.0,0.00022054,3]
[349803039,1737436247605,-35047.46,0.00022054,3]
[349803041,1737436247615,-500.0,0.00022054,3]
[349803043,1737436247624,-3672.32,0.00022054,3]
[349803045,1737436247634,-500.0,0.00022054,3]
[349803047,1737436247644,-8328.07,0.00022054,3]
[349803049,1737436247653,-16648.53,0.00022054,3]
[349803051,1737436247663,-989.27,0.00022054,3]
[349803053,1737436247673,-500.0,0.00022054,3]
[349803055,1737436247683,-196.93009315,0.00022054,3]
[349803057,1737436247693,-2149.07,0.00022054,3]
[349803059,1737436247703,-500.0,0.00022054,3]
[349803061,1737436247714,-500.0,0.00022054,3]
[349803063,1737436247724,-207.42555083,0.00022054,3]
[349803065,1737436247733,-500.0,0.00022054,3]
[349803067,1737436247743,-261.86868968,0.00022054,3]
[349803069,1737436247756,-1654.0,0.00022054,3]
[349803072,1737436247766,-714.08,0.00022054,3]
[349803074,1737436247780,-809.87,0.00022054,3]
[349803076,1737436247789,-500.0,0.00022054,3]
[349803078,1737436247802,-506.26031359,0.00022054,3]
[349803080,1737436247812,-1737.78,0.00022054,3]
[349803082,1737436247822,-520.12,0.00022054,3]
[349803085,1737436247832,-500.0,0.00022054,3]
[349803087,1737436247842,-941.94,0.00022054,3]
[349803089,1737436247851,-668.23,0.00022054,3]
[349803091,1737436247861,-500.0,0.00022054,3]
[349803093,1737436247871,-4729.29,0.00022054,3]
[349803095,1737436247880,-760.16,0.00022054,3]
[349803097,1737436247890,-590.10906164,0.00022054,3]
[349803099,1737436247899,-500.0,0.00022054,3]
[349803101,1737436247909,-500.0,0.00022054,3]
[349803103,1737436247919,-1266.7,0.00022054,3]
[349803105,1737436247929,-438.84188489,0.00022054,3]
[349803107,1737436247939,-500.0,0.00022054,3]
[349803109,1737436247949,-500.0,0.00022054,3]
[349803111,1737436247958,-500.0,0.00022054,3]
[349803113,1737436247968,-500.0,0.00022054,3]
[349803115,1737436247978,-836.8,0.00022054,3]
[349803117,1737436247988,-924.68,0.00022054,3]
[349803119,1737436247997,-2889.09,0.00022054,3]
[349803121,1737436248007,-500.0,0.00022054,3]
[349803123,1737436248017,-966.7,0.00022054,3]
[349803125,1737436248027,-355.24942668,0.00022054,3]
[349803127,1737436248037,-1666.36,0.00022054,3]
[349803129,1737436248048,-500.0,0.00022054,3]
[349803131,1737436248058,-725.57,0.00022054,3]
[349803133,1737436248068,-500.0,0.00022054,3]
[349803135,1737436248078,-4625.09,0.00022054,3]
[349803137,1737436248089,-4079.3,0.00022054,3]
[349803139,1737436248099,-522.87,0.00022054,3]
[349803141,1737436248111,-500.0,0.00022054,3]
[349803143,1737436248121,-7980.33,0.00022054,3]
[349803145,1737436248131,-521.02379113,0.00022054,3]
[349803147,1737436248141,-3321.54,0.00022054,3]
[349803149,1737436248151,-2125.78,0.00022054,3]
[349803151,1737436248160,-700.2,0.00022054,3]
[349803153,1737436248170,-500.0,0.00022054,3]
[349803155,1737436248179,-500.0,0.00022054,3]
[349803157,1737436248189,-12319.31,0.00022054,3]
[349803159,1737436248199,-654.58,0.00022054,3]
[349803161,1737436248208,-500.0,0.00022054,3]
[349803163,1737436248218,-1504.03,0.00022054,3]
[349803165,1737436248228,-581.59,0.00022054,3]
[349803167,1737436248238,-1705.49,0.00022054,3]
[349803169,1737436248247,-1357.55,0.00022054,3]
[349803171,1737436248258,-500.0,0.00022054,3]
[349803173,1737436248268,-495.12517246,0.00022054,3]
[349803175,1737436248277,-500.0,0.00022054,3]
[349803177,1737436248286,-500.0,0.00022054,3]
[349803179,1737436248296,-500.0,0.00022054,3]
[349803181,1737436248306,-841.13,0.00022054,3]
[349803183,1737436248315,-938.07,0.00022054,3]
[349803185,1737436248325,-688.07,0.00022054,3]
[349803187,1737436248334,-500.0,0.00022054,3]
[349803189,1737436248344,-2173.27,0.00022054,3]
[349803191,1737436248354,-500.0,0.00022054,3]
[349803193,1737436248364,-500.0,0.00022054,3]
[349803195,1737436248374,-544.6,0.00022054,3]
[349803197,1737436248384,-47576.26,0.00022054,3]
[349803199,1737436248394,-500.0,0.00022054,3]
[349803201,1737436248403,-676.95,0.00022054,3]
[349803203,1737436248413,-500.0,0.00022054,3]
[349803205,1737436248423,-500.0,0.00022054,3]
[349803207,1737436248434,-3665.17,0.00022054,3]
[349803209,1737436248444,-500.0,0.00022054,3]
[349803211,1737436248454,-2353.99,0.00022054,3]
[349803213,1737436248464,-500.0,0.00022054,3]
[349803215,1737436248474,-500.0,0.00022054,3]
[349803217,1737436248484,-500.0,0.00022054,3]
[349803219,1737436248493,-502.22433282,0.00022073,2]
[349803221,1737436248503,-500.0,0.00022073,2]
[349803223,1737436248513,-500.0,0.00022073,2]
[349803225,1737436248522,-5346.7240276,0.00022091,2]
[349803227,1737436248532,-234.69490058,0.00022152,2]
[349803229,1737436248542,-500.0,0.00022173,2]
[349803231,1737436248555,-254.2797612,0.00022173,2]
[349803233,1737436248565,-552.97043978,0.00022173,2]
[349803235,1737436248575,-500.67631173,0.00022173,2]
[349803237,1737436248586,-500.0,0.00022173,2]
[349803239,1737436248596,-500.0,0.00022173,2]
[349803241,1737436248606,-161.57959155,0.00022173,2]
[349803243,1737436248616,-523.53733128,0.00022173,2]
[349803245,1737436248627,-500.0,0.00022173,2]
[349803247,1737436248637,-502.28196602,0.00022173,2]
[349803249,1737436248647,-368.2276029,0.00022173,2]
[349803251,1737436248657,-500.0,0.00022173,2]
[349803253,1737436248668,-161.0163731,0.00022173,2]
[349803255,1737436248679,-500.0,0.00022173,2]
[349803258,1737436248688,-502.16569342,0.00022173,2]
[349803260,1737436248698,-237.91485364,0.00022173,2]
[349803262,1737436248708,-295.47388613,0.00022173,2]
[349803264,1737436248719,-151.73101988,0.00022173,2]
[349803266,1737436248728,-500.0,0.00022173,2]
[349803268,1737436248738,-500.0,0.00022191,3]
[349803270,1737436248750,-500.0,0.00022191,3]
[349803272,1737436248761,-506.6789579,0.00022191,3]
[349803274,1737436248770,-500.0,0.00022191,3]
[349803276,1737436248780,-500.0,0.00022191,3]
[349803278,1737436248791,-500.0,0.00022191,3]
[349803280,1737436248803,-1235.39,0.00022191,3]
[349803282,1737436248813,-500.0,0.00022191,3]
[349803284,1737436248823,-500.0,0.00022191,3]
[349803286,1737436248835,-500.0,0.00022191,3]
[349803288,1737436248845,-796.12,0.00022191,3]
[349803290,1737436248855,-500.0,0.00022191,3]
[349803292,1737436248866,-500.0,0.00022191,3]
[349803294,1737436248875,-500.0,0.00022191,3]
[349803296,1737436248886,-998.97,0.00022191,3]
[349803298,1737436248897,-503.43584264,0.00022191,3]
[349803300,1737436248908,-604.25,0.00022191,3]
[349803302,1737436248918,-188.0,0.00022191,2]
[349803304,1737436248929,-500.0,0.00022191,3]
[349803306,1737436248940,-500.0,0.00022191,3]
[349803308,1737436248950,-500.0,0.00022191,3]
[349803310,1737436248960,-500.0,0.00022191,3]
[349803312,1737436248969,-500.0,0.00022191,3]
[349803314,1737436248979,-500.0,0.00022191,3]
[349803316,1737436248990,-500.0,0.00022191,3]
[349803318,1737436249001,-174.17003537,0.00022191,3]
[349803320,1737436249010,-500.0,0.00022191,3]
[349803322,1737436249020,-500.0,0.00022191,3]
[349803324,1737436249031,-548.78,0.00022191,3]
[349803326,1737436249040,-500.0,0.00022191,3]
[349803328,1737436249052,-500.0,0.00022191,3]
[349803330,1737436249062,-300.0,0.00022191,3]
[349803332,1737436249072,-500.0,0.00022191,3]
[349803334,1737436249082,-500.0,0.00022191,3]
[349803337,1737436249092,-500.0,0.00022191,3]
[349803338,1737436249102,-500.0,0.00022191,3]
[349803342,1737436249124,-500.0,0.00022191,3]
[349803344,1737436249136,-500.0,0.00022191,3]
[349803346,1737436249146,-500.0,0.00022191,3]
[349803348,1737436249156,-500.0,0.00022191,3]
[349803350,1737436249166,-500.0,0.00022191,3]
[349803352,1737436249176,-500.0,0.00022191,3]
[349803354,1737436249187,-500.0,0.00022191,3]
[349803356,1737436249197,-1333.83,0.00022191,3]
[349803358,1737436249207,-500.0,0.00022191,3]
[349803360,1737436249217,-503.97109054,0.00022191,3]
[349803362,1737436249228,-500.0,0.00022191,3]
[349803364,1737436249238,-500.0,0.00022191,3]
[349803366,1737436249248,-500.0,0.00022191,3]
[349803368,1737436249258,-1527.69,0.00022191,3]
[349803370,1737436249269,-500.0,0.00022191,3]
[349803372,1737436249279,-500.0,0.00022191,3]
[349803374,1737436249290,-500.0,0.00022191,3]
[349803376,1737436249300,-500.0,0.00022191,3]
[349803399,1737436249503,-953.42,0.00022191,3]
[349803402,1737436249536,-500.0,0.00022191,3]
[349803404,1737436249547,-500.0,0.00022191,3]
[349803405,1737436249559,-500.0,0.00022191,3]
[349803408,1737436249570,-500.0,0.00022191,3]
[349803409,1737436249581,-500.0,0.00022191,3]
[349803411,1737436249592,-500.0,0.00022191,3]
[349803413,1737436249602,-500.0,0.00022191,3]
[349803415,1737436249613,-500.0,0.00022191,3]
[349803417,1737436249622,-1913.55,0.00022191,3]
[349803419,1737436249632,-500.0,0.00022191,3]
[349803421,1737436249642,-822.24,0.00022191,3]
[349803423,1737436249651,-500.0,0.00022191,3]
[349803425,1737436249661,-500.0,0.00022191,3]
[349803427,1737436249670,-500.0,0.00022191,3]
[349803429,1737436249680,-500.0,0.00022191,3]
[349803431,1737436249690,-824.53,0.00022191,3]
[349803433,1737436249699,-500.0,0.00022191,3]
[349803435,1737436249708,-1171.5,0.00022191,3]
[349803437,1737436249718,-757.81,0.00022191,3]
[349803439,1737436249727,-500.0,0.00022191,3]
[349803441,1737436249737,-500.0,0.00022191,3]
[349803443,1737436249747,-730.74,0.00022191,3]
[349803445,1737436249759,-1169.85,0.00022191,3]
[349803447,1737436249768,-717.4,0.00022191,3]
[349803449,1737436249778,-1423.53,0.00022191,3]
[349803451,1737436249787,-391.67879441,0.00022191,3]
[349803453,1737436249797,-624.85,0.00022191,3]
[349803455,1737436249807,-500.0,0.00022191,3]
[349803457,1737436249817,-500.0,0.00022191,3]
[349803459,1737436249827,-362.31760294,0.00022191,3]
[349803461,1737436249836,-813.03,0.00022191,3]
[349803463,1737436249846,-500.0,0.00022191,3]
[349803465,1737436249856,-500.0,0.00022191,3]
[349803467,1737436249865,-415.99476969,0.00022191,3]
[349803469,1737436249875,-500.0,0.00022191,3]
[349803471,1737436249887,-500.0,0.00022191,3]
[349803473,1737436249897,-814.58,0.00022191,3]
[349803475,1737436249906,-500.0,0.00022191,3]
[349803477,1737436249916,-500.0,0.00022191,3]
[349803479,1737436249926,-827.27,0.00022191,3]
[349803481,1737436249935,-500.0,0.00022191,3]
[349803483,1737436249944,-747.15,0.00022191,3]
[349803485,1737436249954,-500.0,0.00022191,3]
[349803487,1737436249963,-681.43,0.00022191,3]
[349803488,1737436249972,-500.0,0.00022191,3]
[349803491,1737436249983,-500.0,0.00022191,3]
[349803492,1737436249992,-500.0,0.00022191,3]
[349803494,1737436250002,-500.0,0.00022191,3]
[349803496,1737436250012,-500.0,0.00022191,3]
[349803498,1737436250021,-500.0,0.00022191,3]
[349803501,1737436250031,-500.0,0.00022191,3]
[349803502,1737436250040,-500.0,0.00022191,3]
[349803504,1737436250050,-500.0,0.00022191,3]
[349803506,1737436250059,-500.0,0.00022191,3]
[349803507,1737436250068,-998.18,0.00022191,3]
[349803508,1737436250077,-500.81,0.00022191,3]
[349803509,1737436250086,-500.0,0.00022191,3]
[349803510,1737436250096,-500.0,0.00022191,3]